[Event "34th Pula Open 2022"]
[Site "Pula"]
[Date "2022.06.25"]
[Round "9.4"]
[White "Popovic, Milan S"]
[Black "Makovec, Bruno"]
[Result "1/2-1/2"]
[ECO "B12"]
[WhiteElo "2383"]
[BlackElo "2215"]
[Annotator "TA"]
[PlyCount "57"]
[EventDate "2022.06.18"]
[EventType "swiss"]
[EventCountry "CRO"]
[SourceTitle "playchess.com"]
[Source "ChessBase"]
[SourceQuality "1"]
[TimeControl "5400+30"]

{[%evp 9,57,16,27,17,23,19,23,26,49,50,36,44,45,15,89,79,119,127,117,123,130,122,137,31,31,25,85,0,78,83,136,133,143,148,295,87,93,99,220,235,258,250,214,176,156,156,331,152,197,-23]} 1. e4 {[%emt 0:00:01]} c6 {[%emt 0:00:22]} 2. d4 {[%emt 0:00:04]} d5 {[%emt 0:00:05]} 3. f3 {[%emt 0:00:04]} dxe4 {[%emt 0:00:22]} 4. fxe4 {[%emt 0:00:04]} e5 {[%emt 0:00:24]} 5. Nf3 {[%emt 0:00:05]} Bg4 {[%emt 0:00:13]} 6. c3 {[%emt 0:00:37] B12: Caro-Kann: Advance Variation.} Nd7 {[%emt 0:02:29]} 7. Bd3 $1 {[%emt 0:02:03] The main line 7.Bd3 scores better than 7.Bc4.} Bd6 {[%emt 0:00:50]} 8. Nbd2 {[%emt 0:00:44][%cal Bb1d2,Bd2f1,Bf1e3][%mdl 32] White has an edge.} b5 {[%emt 0:16:25] Prevents Nc4.} 9. a4 {[%emt 0:08:57]} a6 {[%emt 0:02:22]} 10. Nf1 {[%emt 0:00:14] [#]} Ne7 $146 {[%emt 0:09:56]} ({Predecessor:} 10... Ngf6 11. Ne3 Bxf3 12. Qxf3 exd4 13. cxd4 Bb4+ 14. Ke2 O-O 15. e5 Re8 16. Rd1 c5 17. exf6 cxd4 {1-0 (26) Sochacki,C (2490)-Blasco Coll,A (2198) Barcelona 2021}) 11. Ne3 {[%emt 0:04:06]} Bh5 {[%emt 0:05:47]} (11... Bxf3 $11 {remains equal.} 12. Qxf3 O-O) 12. g4 $16 {[%emt 0:32:51]} Bg6 {[%emt 0:01:41]} 13. Nf5 {[%emt 0:07:40]} Bxf5 {[%emt 0:03:13]} 14. gxf5 {[%emt 0:02:15]} O-O {[%emt 0:02:54]} 15. O-O {[%emt 0:03:44]} c5 {[%emt 0:05:44]} 16. d5 {[%emt 0:05:53] White is more active.} ({Better is} 16. axb5 $16 {aiming for dxe5.} cxd4 17. bxa6 (17. Rxa6 Rxa6 18. bxa6 dxc3 $16) (17. cxd4 axb5 18. Rxa8 Qxa8 $16)) 16... c4 $14 {[%emt 0:01:07]} 17. Bc2 {[%emt 0:00:09]} f6 {[%emt 0:05:34]} (17... Kh8 $11) 18. Be3 {[%emt 0:03:47]} (18. Kh1 $16) 18... Qc7 {[%emt 0:05:22]} (18... Nc8 $11) 19. Kh1 $16 {[%emt 0:03:14]} Nc5 {[%emt 0:07:00]} (19... Rab8 $142) 20. Rg1 {[%emt 0:06:31] axb5 is the strong threat.} Rab8 {[%emt 0:01:28]} 21. axb5 {[%emt 0:01:05]} Rxb5 {[%emt 0:00:57]} (21... axb5 $16 22. Qd2 Rf7) 22. Qe2 $2 {[%emt 0:10:11] [#]} (22. Nd2 $18 {and White stays clearly on top.}) 22... Rxb2 {[%emt 0:01:26]} 23. Bc1 $40 {[%emt 0:01:17][%mdl 128] White has strong attack.} ({Much worse is} 23. Qg2 $6 Nc8 $11) 23... Rxc2 {[%emt 0:06:24]} 24. Qxc2 $18 {[%emt 0:00:04]} Nd3 {[%emt 0:02:49]} 25. Bh6 {[%emt 0:01:39]} ({Don't do} 25. Rxa6 $6 Bc5 $16) 25... Rf7 {[%emt 0:00:26]} 26. Rxa6 {[%emt 0:00:57]} Bc5 {[%emt 0:00:36]} 27. Rg3 {[%emt 0:02:45]} ({Much less strong is} 27. Ra8+ Nc8 28. Rg2 Qb7 $16) 27... Qb7 $2 {[%emt 0:00:37] [#]} (27... Kh8 $16 {might work better.}) 28. Ra1 {[%emt 0:00:19]} (28. Ra4 $1 $18 {[%cal Ra4c4] and the rest is easy.}) 28... Kf8 {[%emt 0:02:16]} 29. Qa4 $2 {[%emt 0:00:51] Weighted Error Value: White=0.38/Black=0.36} 1/2-1/2

[Event "34th Pula Open 2022"]
[Site "Pula"]
[Date "2022.06.25"]
[Round "9.5"]
[White "Lindgren, Philip"]
[Black "Rubil, Marko"]
[Result "1-0"]
[ECO "A85"]
[WhiteElo "2369"]
[BlackElo "2272"]
[Annotator "TA"]
[PlyCount "115"]
[EventDate "2022.06.18"]
[EventType "swiss"]
[EventCountry "CRO"]
[SourceTitle "playchess.com"]
[Source "ChessBase"]
[SourceQuality "1"]
[TimeControl "5400+30"]

{[%evp 11,115,16,31,12,29,28,82,84,204,35,53,52,45,-4,0,-26,-30,-52,-50,-78,-81,-112,-92,-121,-106,-116,-116,-111,-108,-107,-112,-97,-112,-100,-66,-115,-85,-78,0,0,7,25,75,72,118,100,122,49,148,108,130,107,135,116,95,61,40,42,197,177,187,0,0,0,0,0,166,113,166,168,154,141,512,504,497,347,781,408,395,315,1374,1311,1989,1989,1920,1884,1835,1379,1916,1685,1877,1573,5214,3566,29975,29976,29978,29978,29978,29979,29985,29986,29986,29987,29989,29990]} 1. d4 {[%emt 0:00:04]} f5 {[%emt 0:07:58]} 2. Nf3 {[%emt 0:01:18]} Nf6 {[%emt 0:00:06]} 3. c4 {[%emt 0:00:57][%cal Bc2c4,Bc4c5][%mdl 32]} g6 {[%emt 0:00:12]} 4. Nc3 {[%emt 0:00:42]} Bg7 {[%emt 0:00:15]} 5. Bf4 {[%emt 0:00:54]} O-O {[%emt 0:00:13]} 6. e3 {[%emt 0:00:46]} d6 {[%emt 0:00:14]} 7. c5 {[%emt 0:00:43] The modern move. A85: Dutch Defence: 2 c4 Nf6 3 Nc3.} h6 {[%emt 0:06:25]} 8. Bc4+ {[%emt 0:02:33]} Kh7 {[%emt 0:00:03]} (8... e6 $11) 9. h4 $1 $16 {[%emt 0:03:00][%cal Of3g5] White is much more active. The black rooks are badly placed. White is better.} Nh5 {[%emt 0:00:08] [#]} (9... d5 $16 {was necessary.} 10. Be2 c6) 10. Qc2 $146 {[%emt 0:12:22]} ({White must play} 10. Ng5+ $1 $18 {[%mdl 512]} Kh8 11. Nf7+ Rxf7 12. Bxf7) ({Predecessor:} 10. Qe2 Nc6 11. O-O-O e6 12. d5 exd5 13. Nxd5 Ne5 14. Bxe5 dxe5 15. Nb6 Qe7 16. Nxa8 Qxc5 {1-0 (25) Tang,A (2501)-Stefansson,V (2293) Chess.com INT 2019}) 10... c6 {[%emt 0:20:46]} 11. cxd6 {[%emt 0:16:15]} exd6 {[%emt 0:00:01]} 12. O-O-O {[%emt 0:00:27]} (12. Bh2 $14) 12... b5 $1 $11 {[%emt 0:02:07]} 13. Bd3 {[%emt 0:19:00]} Na6 14. Qd2 {[%emt 0:00:30]} Nb4 {[%emt 0:14:53]} (14... Nxf4 15. exf4 h5 16. Ng5+ Kh6 17. Kb1 $11) 15. Be2 {[%emt 0:01:09]} Be6 $1 {[%emt 0:04:27]} (15... Nxf4 $6 16. exf4 Be6 17. a3 $11) 16. Kb1 {[%emt 0:01:12]} a5 {[%emt 0:00:37]} ({Worse is} 16... Nxf4 17. exf4 Qa5 18. a3 $15) 17. Ne1 {[%emt 0:14:16]} Nf6 $1 {[%emt 0:14:53] Strongly threatening ...Ne4.} ({Stronger than} 17... Nxf4 18. exf4 Re8 19. h5 $15) 18. f3 {[%emt 0:00:37] Prevents Ne4.} Qe7 {[%emt 0:01:09]} 19. Nd3 {[%emt 0:05:46]} Bc4 {[%emt 0:04:16]} 20. Nc1 {[%emt 0:03:51]} Nfd5 {[%emt 0:02:36]} 21. Nxd5 {[%emt 0:07:45]} Nxd5 {[%emt 0:01:27]} 22. Bd3 {[%emt 0:01:34]} Qf6 {[%emt 0:07:16]} 23. Bc2 {[%emt 0:02:05]} (23. h5 $15 {was preferrable.}) 23... Nxf4 {[%emt 0:00:44]} (23... c5 {is more complex.} 24. g4 Nxf4 25. g5 Qf7) 24. exf4 {[%emt 0:00:02]} c5 {[%emt 0:00:14]} ({Black should play} 24... h5 $1 $17 25. Bb3 a4 26. Bxc4 bxc4) 25. h5 $1 cxd4 {[%emt 0:05:26]} 26. hxg6+ {[%emt 0:00:27]} Qxg6 {[%emt 0:04:26]} (26... Kg8 $11) 27. g4 $1 $16 {[%emt 0:00:24][%cal Bg2g4,Bg4g5][%mdl 32]} Kh8 {[%emt 0:00:15]} (27... Qe6 $142) 28. g5 {[%emt 0:03:15][%cal Oh1h6][%mdl 1024] Rxh6+! is the strong threat. White has strong compensation.} h5 {[%emt 0:01:32] [#]} 29. Rh2 {[%emt 0:01:02]} (29. Ne2 $1 $16) 29... Bf7 {[%emt 0:00:27]} (29... Kg8 $14) 30. Rdh1 {[%emt 0:00:47]} Qe6 {[%emt 0:00:16]} 31. Re1 {[%emt 0:01:32]} Qd7 {[%emt 0:00:57]} 32. Ne2 {[%emt 0:00:32]} Rae8 {[%emt 0:00:57]} 33. Ng3 {[%emt 0:00:16]} Rxe1+ $1 {[%emt 0:01:07]} 34. Qxe1 {[%emt 0:00:01]} d3 $2 {[%emt 0:00:28]} ({Black should try} 34... Qe8 $1 $14 35. Qxe8 (35. Qxa5 $2 Qe3 $19) 35... Rxe8 36. Bxf5 Re1+ 37. Kc2 Kg8) 35. Bxd3 $18 {[%emt 0:00:34]} Re8 {[%emt 0:00:06]} 36. Re2 {[%emt 0:00:46]} ({White has to play} 36. Qxa5 $18 Qb7 37. Nxh5) 36... Rxe2 $11 {[%emt 0:00:48]} 37. Qxe2 {[%emt 0:00:19]} Bg6 {[%emt 0:00:23]} 38. Bxb5 {[%emt 0:00:46]} Qa7 {[%emt 0:00:13] [#] Black is now going downhill.} (38... Qb7 $11) 39. Be8 $1 $18 {[%emt 0:00:38][%cal Bb5e8,Be8h5,Bh5f7,Bf7g8,Bg8e6,Be6f5,Bf5d3][%mdl 32]} Qg1+ {[%emt 0:00:47]} (39... Bh7 $16 {was called for.}) 40. Nf1 {[%emt 0:00:29]} Bh7 {[%emt 0:00:37]} 41. Bxh5 $40 {[%emt 0:00:24][%mdl 128] Hoping for Bf7. White is out for blood.} Qd4 $2 {[%emt 0:00:36][%mdl 8192]} (41... Bg8 $16 {is a better chance.}) 42. Bf7 {[%emt 0:00:49] Intending Qe8+ and mate.} Bf8 {[%emt 0:00:36]} 43. g6 {[%emt 0:00:34]} Bg8 $2 {[%emt 0:00:14]} (43... Kg7 44. gxh7 Kxf7) 44. Ne3 {[%emt 0:00:40] Threatening mate with Qh2+.} Qxf4 {[%emt 0:00:18]} 45. Bxg8 {[%emt 0:00:24]} Bh6 $2 {[%emt 0:00:56] [#]} (45... Kxg8 46. Ng2 Qe5 47. Qc4+ d5) 46. Be6 $1 {[%emt 0:00:32][%cal Oe2b5] White wants to mate with Qb5!} Qxe3 {[%emt 0:00:33]} (46... Qg5 47. Qb5) 47. Qxe3 {[%emt 0:00:08]} Bxe3 {[%emt 0:00:01]} 48. Bxf5 {[%emt 0:00:16][%mdl 4096] Endgame KB-KB} Kg7 {[%emt 0:00:23]} 49. Kc2 {[%emt 0:00:33]} Bd4 {[%emt 0:00:17]} 50. Bd3 {[%emt 0:00:29]} Kf6 {[%emt 0:00:27]} 51. Kb3 {[%emt 0:00:25]} Kg5 {[%emt 0:00:58]} 52. Ka4 {[%emt 0:00:50]} Bxb2 {[%emt 0:00:05]} 53. Kxa5 {[%emt 0:00:04] White mates.} d5 {[%emt 0:00:10]} 54. a4 {[%emt 0:00:36][%cal Ba2a4,Ba4a5][%mdl 32]} Kf4 {[%emt 0:00:02]} 55. Kb5 {[%emt 0:00:30]} Kxf3 {[%emt 0:00:09]} 56. a5 {[%emt 0:00:13]} Ke3 {[%emt 0:00:07]} 57. Bb1 {[%emt 0:00:23]} d4 {[%emt 0:01:20]} 58. g7 {[%emt 0:00:18] Weighted Error Value: White=0.38/Black=0.50} 1-0

[Event "34th Pula Open 2022"]
[Site "Pula"]
[Date "2022.06.25"]
[Round "9.7"]
[White "Jahncke, Giso"]
[Black "Cvitan, Ena"]
[Result "1-0"]
[ECO "E04"]
[WhiteElo "2321"]
[BlackElo "2251"]
[Annotator "TA"]
[PlyCount "91"]
[EventDate "2022.06.18"]
[EventType "swiss"]
[EventCountry "CRO"]
[SourceTitle "playchess.com"]
[Source "ChessBase"]
[SourceQuality "1"]
[TimeControl "5400+30"]

{[%evp 12,90,18,0,39,25,25,25,28,18,25,6,16,0,20,19,33,30,34,16,20,26,28,12,42,27,37,30,35,1,9,0,18,-7,38,19,23,7,69,52,60,0,0,0,0,0,0,-52,16,0,94,91,91,91,97,89,113,113,115,107,107,114,114,104,168,150,141,104,104,104,314,300,256,279,6279,5389,29995,29996,29996,29997,29999]} 1. d4 {[%emt 0:00:03]} d5 {[%emt 0:04:35][%cal Bd7d5,Bd5c4][%mdl 32]} 2. Nf3 {[%emt 0:00:06]} e6 {[%emt 0:00:30]} 3. c4 {[%emt 0:00:08]} Nf6 {[%emt 0:00:39]} 4. g3 {[%emt 0:00:15]} Bb4+ {[%emt 0:00:08]} 5. Nbd2 {[%emt 0:00:06]} dxc4 {[%emt 0:01:41]} 6. Bg2 {[%emt 0:00:09]} O-O {[%emt 0:02:51]} 7. O-O {[%emt 0:01:12]} Bxd2 {[%emt 0:06:48] [#] E04: Open Catalan: 5 Nf3.} (7... b5 $5 {[%cal Rc8b7]}) 8. Qxd2 $146 {[%emt 0:04:24]} ({Predecessor:} 8. Bxd2 Nc6 9. Bg5 h6 10. Bxf6 Qxf6 11. Rc1 e5 12. d5 Rd8 13. Nd2 Ne7 14. e4 b5 15. b3 cxb3 16. Nxb3 c6 {1-0 (43) Xu,X (2574)-Zhou,W (2591) China 2018}) 8... Bd7 {[%emt 0:01:19][%cal Bc8d7,Bd7c6,Bc6d5][%mdl 32]} 9. Qc2 {[%emt 0:09:29]} Bc6 {[%emt 0:01:14] White has an edge.} 10. Qxc4 {[%emt 0:00:09]} Bd5 {[%emt 0:01:16]} 11. Qc2 {[%emt 0:03:20]} Be4 {[%emt 0:00:45]} 12. Qc4 {[%emt 0:02:43]} Bd5 {[%emt 0:00:46]} 13. Qc3 {[%emt 0:00:08]} Nbd7 {[%emt 0:01:36]} 14. Bf4 {[%emt 0:03:07]} Rc8 {[%emt 0:01:15]} 15. b4 {[%emt 0:00:10]} c6 {[%emt 0:01:07]} 16. a4 {[%emt 0:08:07]} Qe7 {[%emt 0:09:00]} 17. Qb2 {[%emt 0:03:59]} Nb6 {[%emt 0:06:15]} 18. Ne5 {[%emt 0:04:19][%cal Bf3e5,Be5d3,Bd3c5][%mdl 32]} Bxg2 {[%emt 0:08:52]} 19. Kxg2 {[%emt 0:00:11]} Rfd8 {[%emt 0:01:13]} 20. Rfd1 {[%emt 0:01:18]} (20. Bg5 {keeps more tension.} Qd6 21. a5 Nbd5 22. e3) 20... h6 {[%emt 0:06:30]} 21. h4 {[%emt 0:00:11]} a6 {[%emt 0:01:39]} 22. Qb3 {[%emt 0:05:52]} Nfd7 {[%emt 0:07:04]} (22... Nbd5 {feels hotter.} 23. Bd2 Ne4 24. Rab1 f6) 23. Nd3 {[%emt 0:01:28]} Nd5 {[%emt 0:00:36]} 24. Be5 {[%emt 0:05:48]} Nxe5 {[%emt 0:06:47]} (24... b5 $11) 25. dxe5 $14 {[%emt 0:00:07]} Qc7 {[%emt 0:04:10]} 26. Qc4 {[%emt 0:04:27]} (26. a5 $14) 26... a5 $11 {[%emt 0:01:28]} 27. bxa5 {[%emt 0:01:30]} Qxa5 {[%emt 0:04:20]} 28. Nc5 {[%emt 0:00:23]} b5 {[%emt 0:08:48]} 29. Qg4 {[%emt 0:06:19]} (29. axb5 $11 Qb6 30. Rdb1) 29... Qa7 {[%emt 0:00:07]} (29... Qc7 $1 $15) 30. Ne4 {[%emt 0:00:53]} b4 {[%emt 0:02:24]} (30... bxa4 $11 31. Rxa4 (31. Nf6+ Kh8 $11) 31... Qc7 32. Nf6+ Kh8 33. Nxd5 exd5) 31. Nf6+ $1 $16 {[%emt 0:12:12]} Kh8 {[%emt 0:00:35]} 32. Nxd5 {[%emt 0:01:13] White is more active.} cxd5 {[%emt 0:00:23]} 33. Qxb4 {[%emt 0:00:18]} Rb8 {[%emt 0:03:07]} 34. Qd4 {[%emt 0:01:23]} Qa5 {[%emt 0:01:15]} 35. Rdb1 {[%emt 0:01:55] Against Rb4} h5 {[%emt 0:00:44]} 36. Qf4 {[%emt 0:01:17] [#] Black must now prevent Rxb8.} Kg8 {[%emt 0:00:10]} 37. Qg5 {[%emt 0:00:49]} Rdc8 {[%emt 0:01:14]} (37... Rxb1 $16 38. Rxb1 Rc8) 38. Rxb8 $18 {[%emt 0:01:58]} ({Don't take} 38. Qxh5 $6 Rxb1 39. Rxb1 Qxa4 $16) 38... Rxb8 {[%emt 0:00:00]} 39. Qxh5 {[%emt 0:00:10][%mdl 4096] Endgame Qg5 is the strong threat. KQR-KQR} Qc3 {[%emt 0:01:02]} 40. Rd1 {[%emt 0:00:55]} Qc2 $2 {[%emt 0:02:54] [#] This move loses the game for Black.} (40... Qb4 $16) 41. Rd4 $1 {[%emt 0:06:09]} Rb1 {[%emt 0:01:05]} 42. Rf4 {[%emt 0:00:18]} g6 $2 {[%emt 0:00:32]} (42... Qc7 43. Qg5 Qc1) 43. Qg5 {[%emt 0:00:17] Intending Qd8+ and mate.} Qxe2 {[%emt 0:02:32]} 44. Qd8+ {[%emt 0:00:11] White mates.} Kg7 {[%emt 0:00:06]} 45. Qf6+ {[%emt 0:00:06]} Kh6 {[%emt 0:00:49]} 46. Qh8# {[%emt 0:00:06] Weighted Error Value: White=0.12 (very precise) /Black=0.42} 1-0

[Event "34th Pula Open 2022"]
[Site "Pula"]
[Date "2022.06.25"]
[Round "9.8"]
[White "Hadzovic, Amir"]
[Black "Vatter, Hans-Joachim"]
[Result "1-0"]
[ECO "B23"]
[WhiteElo "2270"]
[BlackElo "2195"]
[Annotator "TA"]
[PlyCount "67"]
[EventDate "2022.06.18"]
[EventType "swiss"]
[EventCountry "CRO"]
[SourceTitle "playchess.com"]
[Source "ChessBase"]
[SourceQuality "1"]
[TimeControl "5400+30"]

{[%evp 9,67,0,0,-6,0,0,0,0,0,0,12,0,18,12,16,-9,-19,-28,0,4,51,56,83,86,106,81,104,104,192,184,233,279,254,249,237,215,292,318,1022,1032,917,331,360,350,336,277,307,241,468,444,475,248,645,654,795,765,1361,1343,1129,1024]} 1. e4 {[%emt 0:00:49]} c5 {[%emt 0:00:18]} 2. Nc3 {[%emt 0:00:50]} Nc6 {[%emt 0:00:53]} 3. Bc4 {[%emt 0:00:27]} g6 {[%emt 0:01:23]} 4. d3 {[%emt 0:00:12]} Bg7 {[%emt 0:00:03]} 5. a3 {[%emt 0:00:17]} e6 {[%emt 0:01:00]} 6. Ba2 {[%emt 0:00:16] B23: Closed Sicilian: Lines without g3.} Nge7 {[%emt 0:00:17]} 7. h4 {[%emt 0:00:54]} h5 {[%emt 0:04:04]} 8. Bg5 {[%emt 0:05:51] The position is equal.} d6 {[%emt 0:00:26] [#]} 9. Nf3 $146 {[%emt 0:02:24]} ({Predecessor:} 9. Qd2 b6 10. Nf3 Bb7 11. O-O Qd7 12. Rab1 O-O 13. Ne2 Rfe8 14. Ng3 Kh7 15. c3 {0-1 (50) Hernandez Guerra,L (1659)-Jaufarally,N (1810) Porto Carras 2018}) 9... a6 {[%emt 0:01:55]} 10. Qd2 {[%emt 0:00:30]} b5 {[%emt 0:07:36]} 11. O-O {[%emt 0:03:44]} Qc7 {[%emt 0:04:08]} 12. Nd1 {[%emt 0:02:15]} O-O {[%emt 0:06:25]} 13. c3 {[%emt 0:04:36]} a5 {[%emt 0:07:41]} 14. d4 {[%emt 0:10:52]} b4 {[%emt 0:03:21]} (14... a4 $11) 15. Ne3 $14 {[%emt 0:01:23]} bxc3 {[%emt 0:03:20]} 16. bxc3 {[%emt 0:00:08] White leaves nothing to chance now.} Kh7 {[%emt 0:03:42]} 17. Bf4 {[%emt 0:05:33] [#] Black must now prevent dxc5. White is more active.} e5 {[%emt 0:06:23]} 18. Ng5+ {[%emt 0:05:37]} Kg8 {[%emt 0:02:49]} (18... Kh8 $16) 19. dxe5 $18 {[%emt 0:00:52]} Bxe5 {[%emt 0:10:39]} (19... dxe5 {is a better defense.} 20. Bg3 a4) 20. Bxe5 {[%emt 0:06:51]} dxe5 {[%emt 0:00:33]} 21. Nd5 {[%emt 0:00:55]} Qd6 {[%emt 0:01:36]} 22. Qe3 {[%emt 0:04:59]} Nxd5 {[%emt 0:11:50]} 23. exd5 {[%emt 0:00:48][%cal Be4d5,Bd5d6][%mdl 32] [#] Threatens to win with Ne4.} ({Weaker is} 23. Bxd5 Ra6 24. Rfd1 Qe7 $16) 23... Nd8 $2 {[%emt 0:03:16]} (23... Ne7 24. Ne4 Qd8 25. Nf6+ (25. Nxc5 Nxd5 26. Qxe5 Nf6 $16) 25... Kg7) 24. Ne4 $1 {[%emt 0:01:03][%csl LRc5,LRd6]} Qe7 {[%emt 0:00:17]} 25. Qg3 $2 {[%emt 0:01:34]} (25. d6 Qxh4 26. g3) 25... Kg7 {[%emt 0:04:22]} 26. d6 {[%emt 0:02:34]} Qe8 27. Nxc5 {[%emt 0:00:43]} f6 {[%emt 0:01:40]} 28. Rfd1 {[%emt 0:02:35] d7 is the strong threat.} Bd7 $2 {[%emt 0:01:30]} (28... Bf5 {was worth a try.} 29. Bb1 Bg4) 29. Rab1 {[%emt 0:04:38]} Rc8 {[%emt 0:04:11]} 30. Na6 {[%emt 0:00:23]} (30. Qe3 $142) 30... Ne6 $2 {[%emt 0:04:53]} (30... Bf5 31. Rb6 Qa4) 31. Rb7 {[%emt 0:02:34] White is clearly winning.} Nf4 {[%emt 0:01:04] aiming for ...Ne2+.} 32. Qe3 {[%emt 0:00:27] Against Ne2+} Ra8 {[%emt 0:03:39] Inhibits Qa7.} 33. Nc5 {[%emt 0:01:32]} Rd8 {[%emt 0:01:05]} 34. g3 {[%emt 0:00:29] Weighted Error Value: White=0.39/Black=0.48} 1-0

[Event "34th Pula Open 2022"]
[Site "Pula"]
[Date "2022.06.25"]
[Round "9.9"]
[White "Bochnicka, Vladimir"]
[Black "Ragger, Anna-Christina"]
[Result "1/2-1/2"]
[ECO "B33"]
[WhiteElo "2267"]
[BlackElo "2141"]
[Annotator "TA"]
[PlyCount "116"]
[EventDate "2022.06.18"]
[EventType "swiss"]
[EventCountry "CRO"]
[SourceTitle "playchess.com"]
[Source "ChessBase"]
[SourceQuality "1"]
[TimeControl "5400+30"]

{[%evp 31,116,47,23,33,50,58,56,53,60,62,64,15,20,21,28,9,35,0,0,0,0,0,0,0,0,0,0,0,0,0,0,0,0,0,0,0,0,0,0,0,0,-28,-28,-36,-28,-41,-28,-54,-31,-53,-56,-71,-71,-71,-57,-61,-8,-8,-8,-30,0,-24,-24,-25,-26,-71,-71,-72,0,0,0,0,0,0,0,0,0,0,0,0,0,0,0,0,0,0,0]} 1. e4 {[%emt 0:00:04]} c5 {[%emt 0:00:05]} 2. Nf3 {[%emt 0:00:30][%cal Bg1f3,Bf3d4,Bd4b5,Bb5a3,Ba3c2][%mdl 32]} Nc6 {[%emt 0:00:30]} 3. d4 {[%emt 0:00:30]} cxd4 {[%emt 0:00:30]} 4. Nxd4 {[%emt 0:00:30]} Nf6 {[%emt 0:00:30]} 5. Nc3 {[%emt 0:00:30]} e5 {[%emt 0:00:30]} 6. Ndb5 {[%emt 0:00:30]} d6 {[%emt 0:00:00]} 7. Bg5 {[%emt 0:00:00]} a6 {[%emt 0:00:00]} 8. Na3 {[%emt 0:00:00]} b5 {[%emt 0:00:00]} 9. Nd5 {[%emt 0:00:00]} Be7 {[%emt 0:00:00]} 10. Bxf6 {[%emt 0:00:00]} Bxf6 {[%emt 0:00:00]} 11. c3 {[%emt 0:00:00]} O-O {[%emt 0:00:00]} 12. Nc2 {[%emt 0:00:00]} Bg5 {[%emt 0:00:10]} 13. a4 {[%emt 0:00:23]} bxa4 {[%emt 0:00:08]} 14. Rxa4 {[%emt 0:00:11]} a5 {[%emt 0:00:16]} 15. Bc4 {[%emt 0:01:50]} Rb8 {[%emt 0:00:32]} 16. b3 {[%emt 0:02:27]} Kh8 {[%emt 0:00:23]} 17. Nce3 {[%emt 0:16:09] B33: Sicilian: Pelikan and Sveshnikov Variations.} Bxe3 {[%emt 0:00:28]} 18. Nxe3 {[%emt 0:02:21]} Ne7 {[%emt 0:00:54]} 19. O-O {[%emt 0:07:47] White is slightly better.} f5 {[%emt 0:00:24]} 20. exf5 {[%emt 0:01:29]} Bxf5 {[%emt 0:00:17]} 21. Nxf5 {[%emt 0:09:28]} (21. Ra2 $14 {was preferrable.}) 21... Rxf5 $11 {[%emt 0:00:20] [#]} 22. Bd5 $146 {[%emt 0:00:37]} ({Predecessor:} 22. Bd3 Rf6 23. Bc2 Qb6 24. b4 axb4 25. Rxb4 Qc7 26. Qd3 {½-½ (26) Karjakin,S (2678)-Khalifman,A (2632) Amsterdam 2007}) 22... Rf6 {[%emt 0:20:38]} 23. Qd2 {[%emt 0:09:05]} Qb6 {[%emt 0:18:24]} 24. b4 {[%emt 0:31:00]} Nxd5 {[%emt 0:06:41]} 25. Qxd5 {[%emt 0:00:06]} Rbf8 {[%emt 0:00:31][%cal Rf6f2]} 26. Qd2 {[%emt 0:01:08]} axb4 {[%emt 0:00:45]} 27. Rxb4 {[%emt 0:00:24]} Qa7 {[%emt 0:02:58][%cal Of6f2]} 28. h3 {[%emt 0:01:09]} h6 {[%emt 0:01:24]} 29. Kh2 {[%emt 0:02:29]} Qc5 {[%emt 0:06:19]} 30. Qd3 {[%emt 0:05:15]} Qc7 {[%emt 0:05:43]} 31. Qg3 {[%emt 0:03:04]} Qf7 {[%emt 0:03:42][%cal Rf6f2]} 32. f3 {[%emt 0:00:56]} Rg6 {[%emt 0:01:00]} 33. Qe1 {[%emt 0:03:40]} Re8 {[%emt 0:06:23]} 34. c4 {[%emt 0:02:17]} Rf6 {[%emt 0:03:22][%cal Bg6f6,Bf6f4,Bf4c4][%mdl 32]} 35. Qe3 {[%emt 0:01:36]} Rf4 {[%emt 0:00:59]} 36. Rfb1 {[%emt 0:00:26]} Rxc4 {[%emt 0:01:16]} 37. Rb8 {[%emt 0:00:25]} Rcc8 {[%emt 0:03:37]} 38. R8b7 {[%emt 0:00:27]} Rc7 {[%emt 0:00:55]} 39. Qa7 {[%emt 0:00:35]} Rxb7 {[%emt 0:00:39]} 40. Rxb7 $15 {[%emt 0:00:08][%mdl 4096] Endgame KQR-KQR} Qf4+ {[%emt 0:00:14]} 41. Kh1 {[%emt 0:00:05]} Rc8 {[%emt 0:04:34] Threatens to win with ...Rc1+.} 42. Rb8 {[%emt 0:00:05]} Qc1+ {[%emt 0:00:15]} 43. Kh2 {[%emt 0:00:04]} Kh7 {[%emt 0:01:25]} (43... d5 $15) 44. Rxc8 $11 {[%emt 0:00:08]} Qxc8 {[%emt 0:00:04] KQ-KQ} 45. Qe7 $1 {[%emt 0:00:11]} Qc6 {[%emt 0:02:05]} 46. Qe6 {[%emt 0:00:58]} Qc7 {[%emt 0:01:02]} 47. h4 {[%emt 0:01:08]} Qd8 {[%emt 0:00:57]} 48. Kh3 {[%emt 0:00:05] [#]} Qf6 $1 {[%emt 0:00:30]} 49. Qd5 {[%emt 0:00:09] [#]} Qf5+ {[%emt 0:01:21]} ({Black should play} 49... h5 $1 $17) 50. g4 {[%emt 0:00:44] The position is equal.} Qf4 {[%emt 0:02:44]} 51. h5 {[%emt 0:00:24]} Qf6 {[%emt 0:01:03]} 52. Kg2 {[%emt 0:00:38]} g6 {[%emt 0:03:00]} 53. Qb7+ {[%emt 0:01:40]} Kg8 {[%emt 0:01:19]} 54. Qc8+ {[%emt 0:00:13]} Kf7 {[%emt 0:02:19]} 55. Qd7+ {[%emt 0:00:10]} Kf8 {[%emt 0:00:15]} 56. hxg6 {[%emt 0:00:12]} Qxg6 {[%emt 0:00:08]} 57. Qd8+ {[%emt 0:00:05]} Kg7 {[%emt 0:01:37]} 58. Qe7+ {[%emt 0:00:13]} Kg8 {[%emt 0:00:16] Weighted Error Value: White=0.06 (flawless) /Black=0.08 (flawless)} 1/2-1/2